[Event "Memorijal Nesic Predrag IM 202"]
[Site "Pozarevac"]
[Date "2022.02.12"]
[Round "6.1"]
[White "Dudukovic, Nikola"]
[Black "Milanovic, Slavisa"]
[Result "1/2-1/2"]
[ECO "C19"]
[WhiteElo "2362"]
[BlackElo "2296"]
[Annotator "ChessBase"]
[PlyCount "20"]
[EventDate "2022.02.08"]
[EventType "tourn"]
[EventCountry "SRB"]
[SourceTitle "playchess.com"]
[Source "ChessBase"]
[SourceQuality "1"]
[TimeControl "40/5400+30:900+30"]

1. e4 {[%emt 0:00:04]} e6 {[%emt 0:00:18]} 2. d4 {[%emt 0:00:09]} d5 {[%emt 0:00:19]} 3. Nc3 {[%emt 0:00:06]} Bb4 {[%emt 0:00:30]} 4. e5 {[%emt 0:00:24]} c5 {[%emt 0:00:29]} 5. a3 {[%emt 0:00:19]} Bxc3+ {[%emt 0:01:27]} 6. bxc3 {[%emt 0:00:08]} Ne7 {[%emt 0:00:26]} 7. a4 {[%emt 0:01:36]} Qa5 {[%emt 0:00:58]} 8. Bd2 {[%emt 0:01:23]} Nbc6 {[%emt 0:00:46]} 9. Nf3 {[%emt 0:01:09]} Bd7 {[%emt 0:01:21]} 10. Qb1 {[%emt 0:01:02]} c4 {[%emt 0:02:09]} 1/2-1/2

[Event "Memorijal Nesic Predrag IM 202"]
[Site "Pozarevac"]
[Date "2022.02.12"]
[Round "6.2"]
[White "Klukin, Kirill"]
[Black "Sanz Wawer, Daniel"]
[Result "1-0"]
[ECO "E52"]
[WhiteElo "2374"]
[BlackElo "2371"]
[Annotator "ChessBase"]
[PlyCount "109"]
[EventDate "2022.02.08"]
[EventType "tourn"]
[EventCountry "SRB"]
[SourceTitle "playchess.com"]
[Source "ChessBase"]
[SourceQuality "1"]
[TimeControl "40/5400+30:900+30"]

1. d4 {[%emt 0:00:02]} Nf6 {[%emt 0:01:11]} 2. c4 {[%emt 0:00:06]} e6 {[%emt 0:00:17]} 3. Nc3 {[%emt 0:00:07]} Bb4 {[%emt 0:00:05]} 4. Bd2 {[%emt 0:00:12]} O-O {[%emt 0:00:36]} 5. e3 {[%emt 0:00:05]} d5 {[%emt 0:01:18]} 6. Nf3 {[%emt 0:00:35]} b6 {[%emt 0:01:20]} 7. cxd5 {[%emt 0:00:12]} exd5 {[%emt 0:00:25]} 8. Bd3 {[%emt 0:00:07]} Bb7 {[%emt 0:06:06]} 9. O-O {[%emt 0:00:23]} Nbd7 {[%emt 0:01:43]} 10. Rc1 {[%emt 0:00:09]} c6 {[%emt 0:06:13]} 11. Ne5 {[%emt 0:01:02]} Nxe5 {[%emt 0:08:24]} 12. dxe5 {[%emt 0:00:12]} Nd7 {[%emt 0:04:10]} 13. f4 {[%emt 0:06:09]} g6 {[%emt 0:02:35]} 14. a3 {[%emt 0:10:58]} Be7 {[%emt 0:00:15]} 15. b4 {[%emt 0:06:21]} c5 {[%emt 0:06:56]} 16. e4 {[%emt 0:17:58]} c4 {[%emt 0:22:49]} 17. Bb1 {[%emt 0:02:47]} d4 {[%emt 0:09:41]} 18. Nb5 {[%emt 0:07:01]} c3 {[%emt 0:00:46]} 19. Be1 {[%emt 0:01:12]} a5 {[%emt 0:08:39]} 20. Nd6 {[%emt 0:08:41]} Ba6 {[%emt 0:03:06]} 21. Rf3 {[%emt 0:01:19]} f6 {[%emt 0:03:24]} 22. Qxd4 {[%emt 0:03:45]} fxe5 {[%emt 0:01:17]} 23. Qd5+ {[%emt 0:00:34]} Kg7 {[%emt 0:00:32]} 24. Bxc3 {[%emt 0:03:59]} axb4 {[%emt 0:02:48]} 25. axb4 {[%emt 0:00:13]} Ra7 {[%emt 0:06:02]} 26. fxe5 {[%emt 0:10:15]} Rxf3 {[%emt 0:00:13]} 27. gxf3 {[%emt 0:00:05]} Qf8 {[%emt 0:00:18]} 28. e6+ {[%emt 0:08:29]} Nf6 {[%emt 0:00:15]} 29. Be5 {[%emt 0:02:43]} Kg8 {[%emt 0:01:37]} 30. Qd4 {[%emt 0:00:20]} Qh6 {[%emt 0:00:30]} 31. Re1 {[%emt 0:03:17]} Qg5+ {[%emt 0:01:42]} 32. Bg3 {[%emt 0:00:21]} Nh5 {[%emt 0:00:42]} 33. Nf7 {[%emt 0:00:26]} Qf6 {[%emt 0:00:28]} 34. Qxf6 {[%emt 0:03:16]} Bxf6 {[%emt 0:00:10]} 35. Bb8 {[%emt 0:02:08]} Ra8 {[%emt 0:00:33]} 36. Be5 {[%emt 0:01:15]} Bc4 {[%emt 0:00:33]} 37. Bxf6 {[%emt 0:00:17]} Nxf6 {[%emt 0:00:09]} 38. Ng5 {[%emt 0:00:56]} h6 {[%emt 0:00:15]} 39. e5 {[%emt 0:00:09]} Nd5 {[%emt 0:00:56]} 40. Nf7 {[%emt 0:00:00]} Nxb4 {[%emt 0:00:00]} 41. Bxg6 {[%emt 0:04:59]} Bxe6 {[%emt 0:00:56]} 42. Nxh6+ {[%emt 0:00:17]} Kg7 {[%emt 0:00:22]} 43. Be4 {[%emt 0:00:11]} Rf8 {[%emt 0:08:36]} 44. Ng4 {[%emt 0:00:10]} Nd5 {[%emt 0:00:38]} 45. Rc1 {[%emt 0:03:41]} b5 {[%emt 0:06:19]} 46. Rc5 {[%emt 0:01:58]} Bxg4 {[%emt 0:00:05]} 47. fxg4 {[%emt 0:00:38]} Ne3 {[%emt 0:00:04]} 48. h3 {[%emt 0:00:26]} Rf4 {[%emt 0:00:49]} 49. Rc7+ {[%emt 0:01:26]} Kf8 {[%emt 0:01:24]} 50. Bc6 {[%emt 0:00:45]} Rf1+ {[%emt 0:01:25]} 51. Kh2 {[%emt 0:00:05]} Re1 {[%emt 0:00:27]} 52. e6 {[%emt 0:01:28]} Nf1+ {[%emt 0:00:27]} 53. Kg2 {[%emt 0:00:17]} Nd2 {[%emt 0:00:14]} 54. Rf7+ {[%emt 0:00:38]} Kg8 {[%emt 0:00:06]} 55. Bd5 {[%emt 0:00:22]} 1-0

[Event "Memorijal Nesic Predrag IM 202"]
[Site "Pozarevac"]
[Date "2022.02.12"]
[Round "6.3"]
[White "Dev, Shah"]
[Black "Kandjolas, Konstantin"]
[Result "1-0"]
[ECO "E62"]
[WhiteElo "2272"]
[BlackElo "2084"]
[Annotator "ChessBase"]
[PlyCount "105"]
[EventDate "2022.02.08"]
[EventType "tourn"]
[EventCountry "SRB"]
[SourceTitle "playchess.com"]
[Source "ChessBase"]
[SourceQuality "1"]
[TimeControl "40/5400+30:900+30"]

1. d4 {[%emt 0:01:32]} Nf6 {[%emt 0:00:09]} 2. c4 {[%emt 0:00:04]} g6 {[%emt 0:00:07]} 3. Nc3 {[%emt 0:00:05]} Bg7 {[%emt 0:00:08]} 4. Nf3 {[%emt 0:00:07]} O-O {[%emt 0:00:10]} 5. g3 {[%emt 0:00:04]} d6 {[%emt 0:00:22]} 6. Bg2 {[%emt 0:00:07]} Nc6 {[%emt 0:00:10]} 7. O-O {[%emt 0:00:08]} e5 {[%emt 0:00:40]} 8. dxe5 {[%emt 0:00:07]} Nxe5 {[%emt 0:00:26]} 9. Nxe5 {[%emt 0:00:07]} dxe5 {[%emt 0:00:07]} 10. Qxd8 {[%emt 0:00:05]} Rxd8 {[%emt 0:00:10]} 11. Bg5 {[%emt 0:00:03]} Rd4 {[%emt 0:02:54]} 12. Be3 {[%emt 0:00:14]} Rxc4 {[%emt 0:06:38]} 13. Rfd1 {[%emt 0:00:28]} Be6 {[%emt 0:21:03]} 14. Bxb7 {[%emt 0:01:07]} Rb8 {[%emt 0:03:09]} 15. Ba6 {[%emt 0:00:09]} Rc6 {[%emt 0:05:47]} 16. Bb5 {[%emt 0:00:05]} Rd6 {[%emt 0:28:56]} 17. Bxa7 {[%emt 0:02:43]} Rbd8 {[%emt 0:04:15]} 18. a4 {[%emt 0:07:40]} Bb3 {[%emt 0:01:27]} 19. Rxd6 {[%emt 0:00:12]} Rxd6 {[%emt 0:00:11]} 20. Bb8 {[%emt 0:01:14]} Rd2 {[%emt 0:01:39]} 21. Bxc7 {[%emt 0:00:53]} Nd5 {[%emt 0:04:30]} 22. Nxd5 {[%emt 0:00:19]} Bxd5 {[%emt 0:02:51]} 23. b4 {[%emt 0:03:15]} Rd4 {[%emt 0:05:23]} 24. Bb6 {[%emt 0:01:04]} Rxb4 {[%emt 0:01:36]} 25. Rd1 {[%emt 0:00:06]} Be4 {[%emt 0:05:32]} 26. f3 {[%emt 0:05:52]} Rb1 {[%emt 0:00:56]} 27. Rxb1 {[%emt 0:00:04]} Bxb1 {[%emt 0:00:06]} 28. Bc6 {[%emt 0:00:03]} Ba2 {[%emt 0:01:02]} 29. Bb7 {[%emt 0:00:06]} Bc4 {[%emt 0:00:36]} 30. e4 {[%emt 0:00:04]} Kf8 {[%emt 0:02:06]} 31. a5 {[%emt 0:00:08]} Ke7 {[%emt 0:00:30]} 32. a6 {[%emt 0:00:06]} Bxa6 {[%emt 0:00:06]} 33. Bxa6 {[%emt 0:00:05]} h5 {[%emt 0:00:29]} 34. Kf2 {[%emt 0:00:10]} Bh6 {[%emt 0:00:21]} 35. Bc5+ {[%emt 0:00:04]} Kf6 {[%emt 0:00:08]} 36. h4 {[%emt 0:00:40]} Bc1 {[%emt 0:00:50]} 37. Bc4 {[%emt 0:00:10]} Bb2 {[%emt 0:00:23]} 38. Ke2 {[%emt 0:00:11]} Bc1 {[%emt 0:00:27]} 39. Bd6 {[%emt 0:01:19]} Bb2 {[%emt 0:01:51]} 40. f4 {[%emt 0:00:00]} exf4 {[%emt 0:00:00]} 41. gxf4 {[%emt 0:03:05]} Bc3 {[%emt 0:01:44]} 42. e5+ {[%emt 0:00:23]} Kg7 {[%emt 0:01:36]} 43. Be7 {[%emt 0:00:04]} Bb2 {[%emt 0:00:52]} 44. Kf3 {[%emt 0:00:09]} Bc3 {[%emt 0:01:07]} 45. Ke4 {[%emt 0:00:08]} Bb2 {[%emt 0:01:35]} 46. f5 {[%emt 0:00:38]} gxf5+ {[%emt 0:01:43]} 47. Kxf5 {[%emt 0:00:01]} Bc3 {[%emt 0:01:20]} 48. Be2 {[%emt 0:00:08]} Bd2 {[%emt 0:01:20]} 49. Bxh5 {[%emt 0:00:02]} Bc3 {[%emt 0:00:20]} 50. Bf3 {[%emt 0:00:24]} Bd2 {[%emt 0:00:20]} 51. Bg5 {[%emt 0:00:02]} Bc3 {[%emt 0:00:17]} 52. Bd5 {[%emt 0:00:05]} Be1 {[%emt 0:00:14]} 53. h5 {[%emt 0:00:02]} 1-0

[Event "Memorijal Nesic Predrag IM 202"]
[Site "Pozarevac"]
[Date "2022.02.12"]
[Round "6.4"]
[White "Zlatanovic, Boroljub"]
[Black "Petrovic, Aleksa"]
[Result "1/2-1/2"]
[ECO "E17"]
[WhiteElo "2338"]
[BlackElo "2296"]
[Annotator "ChessBase"]
[PlyCount "165"]
[EventDate "2022.02.08"]
[EventType "tourn"]
[EventCountry "SRB"]
[SourceTitle "playchess.com"]
[Source "ChessBase"]
[SourceQuality "1"]
[TimeControl "40/5400+30:900+30"]

1. c4 {[%emt 0:00:02]} e6 {[%emt 0:01:00]} 2. g3 {[%emt 0:00:56]} Nf6 {[%emt 0:00:06]} 3. b3 {[%emt 0:01:53]} Be7 {[%emt 0:00:53]} 4. Bg2 {[%emt 0:00:13]} d5 {[%emt 0:00:18]} 5. Nf3 {[%emt 0:00:54]} O-O {[%emt 0:00:41]} 6. O-O {[%emt 0:00:24]} b6 {[%emt 0:00:04]} 7. Bb2 {[%emt 0:01:13]} Bb7 {[%emt 0:00:06]} 8. cxd5 {[%emt 0:01:19]} exd5 {[%emt 0:04:15]} 9. d4 {[%emt 0:01:16]} Nbd7 {[%emt 0:01:21]} 10. Nc3 {[%emt 0:00:31]} Re8 {[%emt 0:02:06]} 11. Rc1 {[%emt 0:00:54]} a6 {[%emt 0:01:07]} 12. Ne5 {[%emt 0:03:44]} Bd6 {[%emt 0:02:26]} 13. f4 {[%emt 0:10:07]} c5 {[%emt 0:08:22]} 14. e3 {[%emt 0:00:23]} b5 {[%emt 0:01:43]} 15. Nxd7 {[%emt 0:16:05]} Qxd7 {[%emt 0:00:55]} 16. dxc5 {[%emt 0:00:12]} Bxc5 {[%emt 0:11:18]} 17. Nxd5 {[%emt 0:00:21]} Qxd5 {[%emt 0:37:05]} 18. Bxd5 {[%emt 0:01:33]} Bxe3+ {[%emt 0:00:13]} 19. Rf2 {[%emt 0:06:14]} Nxd5 {[%emt 0:01:27]} 20. Bd4 {[%emt 0:01:34]} Bxc1 {[%emt 0:07:02]} 21. Qxc1 {[%emt 0:00:13]} Re4 {[%emt 0:00:49]} 22. Rd2 {[%emt 0:01:50]} Rae8 {[%emt 0:00:46]} 23. Kf2 {[%emt 0:03:06]} h5 {[%emt 0:07:31]} 24. Qd1 {[%emt 0:01:45]} g6 {[%emt 0:08:28]} 25. Qc1 {[%emt 0:11:03]} h4 {[%emt 0:01:53]} 26. Qd1 {[%emt 0:02:13]} h3 {[%emt 0:01:00]} 27. Qg4 {[%emt 0:03:20]} Nb4 {[%emt 0:00:32]} 28. Qxh3 {[%emt 0:02:45]} Nd3+ {[%emt 0:00:12]} 29. Rxd3 {[%emt 0:00:15]} Re2+ {[%emt 0:00:02]} 30. Kg1 {[%emt 0:00:08]} Re1+ {[%emt 0:00:15]} 31. Qf1 {[%emt 0:00:15]} Rxf1+ {[%emt 0:00:57]} 32. Kxf1 {[%emt 0:00:01]} Rd8 {[%emt 0:00:25]} 33. g4 {[%emt 0:02:53]} f5 {[%emt 0:01:08]} 34. g5 {[%emt 0:01:55]} Be4 {[%emt 0:00:28]} 35. Rd2 {[%emt 0:00:08]} a5 {[%emt 0:00:32]} 36. Ke2 {[%emt 0:02:14]} Bb1 {[%emt 0:00:31]} 37. Ke3 {[%emt 0:01:05]} Kf7 {[%emt 0:00:01]} 38. a3 {[%emt 0:01:36]} Rd7 {[%emt 0:00:58]} 39. h4 {[%emt 0:05:11]} b4 {[%emt 0:00:31]} 40. axb4 {[%emt 0:00:00]} axb4 {[%emt 0:00:00]} 41. Rh2 {[%emt 0:06:38]} Re7+ {[%emt 0:07:49]} 42. Be5 {[%emt 0:01:11]} Rd7 {[%emt 0:02:47]} 43. h5 {[%emt 0:01:17]} Rd3+ {[%emt 0:01:07]} 44. Ke2 {[%emt 0:00:15]} gxh5 {[%emt 0:00:25]} 45. Rxh5 {[%emt 0:00:11]} Rxb3 {[%emt 0:04:44]} 46. Rh7+ {[%emt 0:00:28]} Ke6 {[%emt 0:01:38]} 47. g6 {[%emt 0:02:24]} Rg3 {[%emt 0:00:15]} 48. g7 {[%emt 0:00:30]} Ba2 {[%emt 0:00:27]} 49. Rh8 {[%emt 0:04:11]} Ke7 {[%emt 0:00:09]} 50. Rb8 {[%emt 0:00:39]} Bf7 {[%emt 0:01:07]} 51. Kf2 {[%emt 0:02:01]} Rg6 {[%emt 0:00:28]} 52. Rb7+ {[%emt 0:00:31]} Ke8 {[%emt 0:00:08]} 53. Rxb4 {[%emt 0:00:10]} Be6 {[%emt 0:00:56]} 54. Rb6 {[%emt 0:00:45]} Kf7 {[%emt 0:00:21]} 55. Ke3 {[%emt 0:00:33]} Rg3+ {[%emt 0:00:33]} 56. Kd4 {[%emt 0:00:07]} Bb3 {[%emt 0:00:00]} 57. Kc5 {[%emt 0:00:22]} Kg8 {[%emt 0:00:16]} 58. Bd4 {[%emt 0:01:11]} Kh7 {[%emt 0:00:43]} 59. Rb8 {[%emt 0:00:49]} Bg8 {[%emt 0:00:14]} 60. Kd6 {[%emt 0:01:21]} Rg6+ {[%emt 0:00:15]} 61. Ke7 {[%emt 0:00:54]} Re6+ {[%emt 0:01:06]} 62. Kf8 {[%emt 0:01:03]} Rc6 {[%emt 0:00:33]} 63. Be5 {[%emt 0:01:49]} Rc4 {[%emt 0:00:28]} 64. Rb2 {[%emt 0:00:26]} Rc8+ {[%emt 0:00:12]} 65. Ke7 {[%emt 0:00:02]} Rc6 {[%emt 0:00:16]} 66. Rh2+ {[%emt 0:00:55]} Rh6 {[%emt 0:00:11]} 67. Rg2 {[%emt 0:00:52]} Rg6 {[%emt 0:00:19]} 68. Rb2 {[%emt 0:00:34]} Ra6 {[%emt 0:00:47]} 69. Rb7 {[%emt 0:03:55]} Re6+ {[%emt 0:00:46]} 70. Kd7 {[%emt 0:00:22]} Ra6 {[%emt 0:01:06]} 71. Rb8 {[%emt 0:00:20]} Ra7+ {[%emt 0:00:39]} 72. Kd6 {[%emt 0:00:15]} Ra6+ {[%emt 0:00:22]} 73. Ke7 {[%emt 0:00:15]} Ra7+ {[%emt 0:00:04]} 74. Kf6 {[%emt 0:01:40]} Rxg7 {[%emt 0:00:26]} 75. Kxf5 {[%emt 0:00:19]} Ra7 {[%emt 0:01:19]} 76. Rb2 {[%emt 0:00:20]} Ra6 {[%emt 0:00:32]} 77. Rg2 {[%emt 0:01:35]} Be6+ {[%emt 0:00:14]} 78. Kg5 {[%emt 0:00:03]} Bh3 {[%emt 0:00:22]} 79. Rb2 {[%emt 0:01:01]} Rg6+ {[%emt 0:00:18]} 80. Kh4 {[%emt 0:00:07]} Rh6+ {[%emt 0:00:31]} 81. Kg3 {[%emt 0:00:07]} Be6 {[%emt 0:00:17]} 82. Rb7+ {[%emt 0:00:25]} Kg6 {[%emt 0:00:02]} 83. Rb8 {[%emt 0:01:52]} 1/2-1/2

[Event "Memorijal Nesic Predrag IM 202"]
[Site "Pozarevac"]
[Date "2022.02.12"]
[Round "6.5"]
[White "Spasic, Petar"]
[Black "Milosevic, Milos"]
[Result "1-0"]
[ECO "A28"]
[WhiteElo "2334"]
[BlackElo "2296"]
[Annotator "ChessBase"]
[PlyCount "63"]
[EventDate "2022.02.08"]
[EventType "tourn"]
[EventCountry "SRB"]
[SourceTitle "playchess.com"]
[Source "ChessBase"]
[SourceQuality "1"]
[TimeControl "40/5400+30:900+30"]

1. c4 {[%emt 0:00:03]} e5 {[%emt 0:01:22]} 2. Nc3 {[%emt 0:00:05]} Nf6 {[%emt 0:02:46]} 3. Nf3 {[%emt 0:00:05]} Nc6 {[%emt 0:00:06]} 4. d3 {[%emt 0:00:05]} d5 {[%emt 0:08:24]} 5. cxd5 {[%emt 0:00:05]} Nxd5 {[%emt 0:00:04]} 6. a3 {[%emt 0:00:27]} Be7 {[%emt 0:02:12]} 7. e4 {[%emt 0:02:00]} Nb6 {[%emt 0:00:33]} 8. Be3 {[%emt 0:00:27]} Be6 {[%emt 0:00:53]} 9. Rc1 {[%emt 0:02:24]} O-O {[%emt 0:00:37]} 10. Be2 {[%emt 0:00:05]} Qd7 {[%emt 0:03:30]} 11. O-O {[%emt 0:00:32]} Rfd8 {[%emt 0:00:47]} 12. b4 {[%emt 0:02:50]} f6 {[%emt 0:00:58]} 13. Qc2 {[%emt 0:01:03]} Rac8 {[%emt 0:05:14]} 14. Bc5 {[%emt 0:05:46]} a5 {[%emt 0:02:11]} 15. Qb1 {[%emt 0:02:31]} axb4 {[%emt 0:01:22]} 16. axb4 {[%emt 0:00:05]} Ra8 {[%emt 0:04:49]} 17. d4 {[%emt 0:18:31]} exd4 {[%emt 0:11:16]} 18. Rfd1 {[%emt 0:00:39]} Bxc5 {[%emt 0:01:25]} 19. bxc5 {[%emt 0:00:09]} Nc4 {[%emt 0:00:24]} 20. Nd5 {[%emt 0:02:42]} Na3 {[%emt 0:29:24]} 21. Qxb7 {[%emt 0:01:16]} Bxd5 {[%emt 0:00:24]} 22. exd5 {[%emt 0:00:08]} Qxd5 {[%emt 0:00:11]} 23. Qxc7 {[%emt 0:01:06]} Ra7 {[%emt 0:02:08]} 24. Qf4 {[%emt 0:05:09]} Re7 {[%emt 0:05:00]} 25. Bd3 {[%emt 0:02:07]} Nb4 {[%emt 0:00:06]} 26. Bxh7+ {[%emt 0:06:24]} Kxh7 {[%emt 0:00:03]} 27. Rxd4 {[%emt 0:00:06]} Qa8 {[%emt 0:00:57]} 28. Rxd8 {[%emt 0:00:35]} Qxd8 {[%emt 0:00:01]} 29. Qxb4 {[%emt 0:00:13]} Qd3 {[%emt 0:00:07]} 30. c6 {[%emt 0:00:55]} Re4 {[%emt 0:00:18]} 31. Qxe4+ {[%emt 0:00:16]} Qxe4 {[%emt 0:00:07]} 32. c7 {[%emt 0:00:04]} 1-0

[Event "Memorijal Nesic Predrag IM 202"]
[Site "Pozarevac"]
[Date "2022.02.13"]
[Round "7.1"]
[White "Kandjolas, Konstantin"]
[Black "Dudukovic, Nikola"]
[Result "0-1"]
[ECO "A64"]
[WhiteElo "2084"]
[BlackElo "2362"]
[Annotator "ChessBase"]
[PlyCount "90"]
[EventDate "2022.02.08"]
[EventType "tourn"]
[EventCountry "SRB"]
[SourceTitle "playchess.com"]
[Source "ChessBase"]
[SourceQuality "1"]
[TimeControl "40/5400+30:900+30"]

1. d4 {[%emt 0:00:58]} Nf6 {[%emt 0:00:13]} 2. c4 {[%emt 0:00:28]} e6 {[%emt 0:00:27]} 3. Nf3 {[%emt 0:00:28]} c5 {[%emt 0:00:05]} 4. d5 {[%emt 0:00:34]} exd5 {[%emt 0:00:08]} 5. cxd5 {[%emt 0:00:06]} d6 {[%emt 0:00:04]} 6. Nc3 {[%emt 0:00:44]} g6 {[%emt 0:00:08]} 7. g3 {[%emt 0:00:38]} Bg7 {[%emt 0:00:05]} 8. Bg2 {[%emt 0:00:06]} O-O {[%emt 0:00:06]} 9. O-O {[%emt 0:00:08]} Re8 {[%emt 0:00:29]} 10. Nd2 {[%emt 0:01:06]} Nbd7 {[%emt 0:02:19]} 11. h3 {[%emt 0:05:12]} a6 {[%emt 0:02:15]} 12. a4 {[%emt 0:01:00]} Rb8 {[%emt 0:01:55]} 13. Nc4 {[%emt 0:06:54]} Nb6 {[%emt 0:03:56]} 14. Na3 {[%emt 0:05:07]} Bd7 {[%emt 0:07:22]} 15. Bf4 {[%emt 0:11:45]} Nc8 {[%emt 0:12:43]} 16. Nc4 {[%emt 0:10:24]} Qc7 {[%emt 0:03:43]} 17. a5 {[%emt 0:07:19]} Bb5 {[%emt 0:04:07]} 18. Qb3 {[%emt 0:15:48]} Qd7 {[%emt 0:20:12]} 19. Rfe1 {[%emt 0:05:36]} Bxc4 {[%emt 0:13:36]} 20. Qxc4 {[%emt 0:00:12]} Nh5 {[%emt 0:01:58]} 21. Bd2 {[%emt 0:07:53]} Na7 {[%emt 0:00:26]} 22. g4 {[%emt 0:04:25]} Nf6 {[%emt 0:00:14]} 23. Bf4 {[%emt 0:01:43]} Nb5 {[%emt 0:01:21]} 24. Nxb5 {[%emt 0:03:52]} axb5 {[%emt 0:00:28]} 25. Qd3 {[%emt 0:00:56]} c4 {[%emt 0:10:38]} 26. Qg3 {[%emt 0:02:38]} Ne4 {[%emt 0:01:04]} 27. Bxe4 {[%emt 0:03:06]} Rxe4 {[%emt 0:00:06]} 28. Bxd6 {[%emt 0:01:32]} Rbe8 {[%emt 0:01:20]} 29. Ba3 {[%emt 0:03:48]} Qxd5 {[%emt 0:01:46]} 30. Rad1 {[%emt 0:00:18]} Rd4 {[%emt 0:00:20]} 31. Rxd4 {[%emt 0:00:23]} Qxd4 {[%emt 0:00:20]} 32. Kf1 {[%emt 0:00:40]} Qd2 {[%emt 0:01:55]} 33. Qd6 {[%emt 0:00:41]} Qxd6 {[%emt 0:01:28]} 34. Bxd6 {[%emt 0:00:01]} Bxb2 {[%emt 0:00:10]} 35. e3 {[%emt 0:00:53]} Rd8 {[%emt 0:01:03]} 36. Bb4 {[%emt 0:00:36]} Rd3 {[%emt 0:01:17]} 37. Rb1 {[%emt 0:00:17]} c3 {[%emt 0:05:14]} 38. Bxc3 {[%emt 0:00:04]} Bxc3 {[%emt 0:00:05]} 39. Rxb5 {[%emt 0:00:03]} Rd7 {[%emt 0:00:18]} 40. Ke2 {[%emt 0:00:00]} Kf8 {[%emt 0:00:00]} 41. f4 {[%emt 0:00:53]} Ke7 {[%emt 0:01:25]} 42. Kf3 {[%emt 0:00:13]} Rc7 {[%emt 0:05:23]} 43. h4 {[%emt 0:00:55]} Kd6 {[%emt 0:02:53]} 44. e4 {[%emt 0:05:03]} Kc6 {[%emt 0:00:24]} 45. Rd5 {[%emt 0:00:10]} Rd7 {[%emt 0:00:14]} 0-1

[Event "Memorijal Nesic Predrag IM 202"]
[Site "Pozarevac"]
[Date "2022.02.13"]
[Round "7.2"]
[White "Petrovic, Aleksa"]
[Black "Klukin, Kirill"]
[Result "1/2-1/2"]
[ECO "A90"]
[WhiteElo "2296"]
[BlackElo "2374"]
[Annotator "ChessBase"]
[PlyCount "99"]
[EventDate "2022.02.08"]
[EventType "tourn"]
[EventCountry "SRB"]
[SourceTitle "playchess.com"]
[Source "ChessBase"]
[SourceQuality "1"]
[TimeControl "40/5400+30:900+30"]

1. d4 {[%emt 0:00:03]} f5 {[%emt 0:00:13]} 2. g3 {[%emt 0:00:52]} Nf6 {[%emt 0:00:06]} 3. Bg2 {[%emt 0:00:04]} e6 {[%emt 0:00:06]} 4. c4 {[%emt 0:00:14]} c6 {[%emt 0:00:05]} 5. Nc3 {[%emt 0:01:51]} d5 {[%emt 0:00:21]} 6. Nh3 {[%emt 0:01:29]} Bd6 {[%emt 0:02:11]} 7. Qb3 {[%emt 0:01:33]} O-O {[%emt 0:04:41]} 8. Bf4 {[%emt 0:01:35]} Be7 {[%emt 0:09:16]} 9. O-O {[%emt 0:02:02]} Nbd7 {[%emt 0:03:49]} 10. Qc2 {[%emt 0:24:59]} Ne4 {[%emt 0:05:28]} 11. Rad1 {[%emt 0:26:37]} Ndf6 {[%emt 0:04:45]} 12. f3 {[%emt 0:02:49]} Nd6 {[%emt 0:00:53]} 13. c5 {[%emt 0:05:50]} Nf7 {[%emt 0:00:20]} 14. e4 {[%emt 0:04:32]} b6 {[%emt 0:08:05]} 15. b4 {[%emt 0:01:08]} a5 {[%emt 0:06:55]} 16. a3 {[%emt 0:00:16]} axb4 {[%emt 0:00:55]} 17. axb4 {[%emt 0:00:31]} bxc5 {[%emt 0:02:24]} 18. bxc5 {[%emt 0:01:22]} Qa5 {[%emt 0:03:14]} 19. exf5 {[%emt 0:05:11]} exf5 {[%emt 0:01:51]} 20. Rfe1 {[%emt 0:02:37]} Re8 {[%emt 0:01:03]} 21. Nf2 {[%emt 0:09:22]} Bd8 {[%emt 0:14:06]} 22. Rxe8+ {[%emt 0:00:52]} Nxe8 {[%emt 0:00:04]} 23. Qe2 {[%emt 0:01:18]} Bd7 {[%emt 0:01:32]} 24. Bd2 {[%emt 0:00:41]} Qa7 {[%emt 0:00:15]} 25. Nd3 {[%emt 0:01:38]} Bf6 {[%emt 0:02:08]} 26. Be3 {[%emt 0:02:08]} Nc7 {[%emt 0:01:44]} 27. f4 {[%emt 0:00:42]} Qa3 {[%emt 0:02:18]} 28. Qc2 {[%emt 0:01:38]} Rb8 {[%emt 0:01:06]} 29. h3 {[%emt 0:00:30]} Bc8 {[%emt 0:02:27]} 30. Ne5 {[%emt 0:00:29]} Bxe5 {[%emt 0:13:06]} 31. fxe5 {[%emt 0:00:02]} Rb3 {[%emt 0:00:30]} 32. Rc1 {[%emt 0:00:29]} Nb5 {[%emt 0:02:13]} 33. Nxb5 {[%emt 0:00:33]} Rxb5 {[%emt 0:00:02]} 34. Bf2 {[%emt 0:00:44]} Rb2 {[%emt 0:00:18]} 35. Qc3 {[%emt 0:00:20]} Qa2 {[%emt 0:01:23]} 36. Qe3 {[%emt 0:00:02]} Re2 {[%emt 0:02:18]} 37. Qf3 {[%emt 0:00:02]} Ng5 {[%emt 0:02:36]} 38. Qh5 {[%emt 0:00:37]} h6 {[%emt 0:00:06]} 39. Qe8+ {[%emt 0:00:45]} Kh7 {[%emt 0:00:05]} 40. Rf1 {[%emt 0:00:00]} Qa6 {[%emt 0:00:00]} 41. h4 {[%emt 0:05:04]} Ne4 {[%emt 0:09:14]} 42. Bf3 {[%emt 0:07:46]} Rxf2 {[%emt 0:04:22]} 43. Rxf2 {[%emt 0:02:11]} Nxf2 {[%emt 0:03:55]} 44. Bh5 {[%emt 0:00:49]} Qa1+ {[%emt 0:01:19]} 45. Kg2 {[%emt 0:00:20]} Qh1+ {[%emt 0:00:16]} 46. Kxf2 {[%emt 0:00:05]} Qh2+ {[%emt 0:00:03]} 47. Kf3 {[%emt 0:01:53]} Qh1+ {[%emt 0:00:05]} 48. Kf2 {[%emt 0:01:10]} Qh2+ {[%emt 0:00:05]} 49. Kf3 {[%emt 0:00:01]} Qh1+ {[%emt 0:00:07]} 50. Kf2 {[%emt 0:00:41]} 1/2-1/2